[Event "Late-Titled-Tuesday-Blitz-October-17-2023"]
[Site "Chess.com"]
[Date "2023.10.17"]
[Round "3"]
[White "SchmakAttack"]
[Black "BogdanDeac"]
[Result "0-1"]
[WhiteElo "2741"]
[BlackElo "2993"]
[TimeControl "180+1"]
[EndTime "14:29:52 PDT"]
[Termination "BogdanDeac won on time"]

1. e4 {[%clk 0:03:00.9]} 1... c5 {[%clk 0:02:58.1]} 2. Nf3 {[%clk 0:03:00.9]}
2... e6 {[%clk 0:02:57.2]} 3. d4 {[%clk 0:02:59.4]} 3... cxd4 {[%clk 0:02:58.1]}
4. Nxd4 {[%clk 0:03:00.1]} 4... a6 {[%clk 0:02:57]} 5. c4 {[%clk 0:02:54.8]}
5... Nf6 {[%clk 0:02:56.6]} 6. Nc3 {[%clk 0:02:55]} 6... Bb4 {[%clk 0:02:57.2]}
7. Qd3 {[%clk 0:02:55.3]} 7... Qc7 {[%clk 0:02:55.5]} 8. Be2 {[%clk 0:02:47.4]}
8... Nc6 {[%clk 0:02:53.9]} 9. Nxc6 {[%clk 0:02:47.2]} 9... dxc6 {[%clk
0:02:53.8]} 10. O-O {[%clk 0:02:47.1]} 10... O-O {[%clk 0:02:53.2]} 11. Bg5
{[%clk 0:02:34.5]} 11... Be7 {[%clk 0:02:51.9]} 12. Rad1 {[%clk 0:02:21]} 12...
Ng4 {[%clk 0:02:42.2]} 13. Bxg4 {[%clk 0:02:17.5]} 13... Bxg5 {[%clk 0:02:41.9]}
14. c5 {[%clk 0:02:05.7]} 14... e5 {[%clk 0:01:33]} 15. Bf5 {[%clk 0:01:29.8]}
15... Be7 {[%clk 0:01:21.6]} 16. Qc4 {[%clk 0:01:14.3]} 16... g6 {[%clk
0:00:51.3]} 17. Bxc8 {[%clk 0:01:13.2]} 17... Raxc8 {[%clk 0:00:52.2]} 18. b4
{[%clk 0:00:57.4]} 18... a5 {[%clk 0:00:44]} 19. a3 {[%clk 0:00:56.6]} 19...
axb4 {[%clk 0:00:44.2]} 20. axb4 {[%clk 0:00:57.5]} 20... Rcd8 {[%clk
0:00:44.5]} 21. g3 {[%clk 0:00:57.5]} 21... h5 {[%clk 0:00:42.1]} 22. Kg2 {[%clk
0:00:41.5]} 22... h4 {[%clk 0:00:34]} 23. Na4 {[%clk 0:00:40.8]} 23... Rxd1
{[%clk 0:00:24.3]} 24. Rxd1 {[%clk 0:00:41.7]} 24... Rd8 {[%clk 0:00:24.5]} 25.
Qe2 {[%clk 0:00:35.5]} 25... Qc8 {[%clk 0:00:19.2]} 26. Nb6 {[%clk 0:00:32.7]}
26... Qe6 {[%clk 0:00:18.4]} 27. Rxd8+ {[%clk 0:00:19.4]} 27... Bxd8 {[%clk
0:00:18.1]} 28. Nc4 {[%clk 0:00:19.9]} 28... h3+ {[%clk 0:00:14.3]} 29. Kf1
{[%clk 0:00:20.2]} 29... Bc7 {[%clk 0:00:07.2]} 30. Qd3 {[%clk 0:00:18.7]} 30...
Kf8 {[%clk 0:00:07.1]} 31. Ke2 {[%clk 0:00:18.2]} 31... f5 {[%clk 0:00:06.4]}
32. f3 {[%clk 0:00:16.1]} 32... Ke7 {[%clk 0:00:06.5]} 33. Ne3 {[%clk
0:00:11.9]} 33... f4 {[%clk 0:00:03.3]} 34. gxf4 {[%clk 0:00:08.4]} 34... exf4
{[%clk 0:00:03.6]} 35. Nc4 {[%clk 0:00:06.4]} 35... Qf6 {[%clk 0:00:03.9]} 36.
Qd1 {[%clk 0:00:03.6]} 36... Qc3 {[%clk 0:00:03.8]} 37. Qd3 {[%clk 0:00:02.4]}
37... Qxb4 {[%clk 0:00:03.1]} 38. Qd4 {[%clk 0:00:02.9]} 38... Qb5 {[%clk
0:00:03.1]} 39. Kd2 {[%clk 0:00:01.6]} 39... Ba5+ {[%clk 0:00:02.6]} 40. Nxa5
{[%clk 0:00:02]} 40... Qxa5+ {[%clk 0:00:02.4]} 41. Kc2 {[%clk 0:00:02.7]} 41...
Qa2+ {[%clk 0:00:02.6]} 42. Kc1 {[%clk 0:00:03.4]} 42... Qa3+ {[%clk 0:00:02.5]}
43. Kc2 {[%clk 0:00:03.6]} 43... Qxf3 {[%clk 0:00:03.2]} 44. Qe5+ {[%clk
0:00:03.8]} 44... Kf7 {[%clk 0:00:03.2]} 45. Qc7+ {[%clk 0:00:01.9]} 45... Kf8
{[%clk 0:00:03]} 46. Qd8+ {[%clk 0:00:01.6]} 46... Kf7 {[%clk 0:00:03.5]} 47.
Qd7+ {[%clk 0:00:02.2]} 47... Kf6 {[%clk 0:00:03.9]} 48. Qd6+ {[%clk 0:00:02.9]}
48... Kg7 {[%clk 0:00:04.2]} 49. Qe7+ {[%clk 0:00:02.9]} 49... Kh6 {[%clk
0:00:04.4]} 50. Qh4+ {[%clk 0:00:03.3]} 50... Qh5 {[%clk 0:00:04.7]} 51. Qxf4+
{[%clk 0:00:03.8]} 51... Qg5 {[%clk 0:00:05.1]} 52. Qf8+ {[%clk 0:00:03.6]}
52... Kh5 {[%clk 0:00:05.5]} 53. Qh8+ {[%clk 0:00:04.1]} 53... Kg4 {[%clk
0:00:05.6]} 54. Qd4 {[%clk 0:00:02.3]} 54... Kf3 {[%clk 0:00:03.8]} 55. e5
{[%clk 0:00:02.1]} 55... Qf5+ {[%clk 0:00:03.9]} 56. Kc3 {[%clk 0:00:02.1]}
56... Kg2 {[%clk 0:00:04]} 57. Qe3 {[%clk 0:00:02.1]} 57... Kxh2 {[%clk
0:00:03]} 58. e6 {[%clk 0:00:02.6]} 58... Qf6+ {[%clk 0:00:03.5]} 59. Kc4 {[%clk
0:00:02.9]} 59... Kg2 {[%clk 0:00:03]} 60. e7 {[%clk 0:00:03.2]} 60... Qf7+
{[%clk 0:00:03.5]} 61. Kc3 {[%clk 0:00:03.5]} 61... h2 {[%clk 0:00:03.9]} 62.
e8=Q {[%clk 0:00:03.9]} 62... Qxe8 {[%clk 0:00:04]} 63. Qxe8 {[%clk 0:00:04.8]}
63... h1=Q {[%clk 0:00:03.9]} 64. Qxg6+ {[%clk 0:00:05.2]} 64... Kf2 {[%clk
0:00:04.3]} 65. Qf7+ {[%clk 0:00:05.4]} 65... Qf3+ {[%clk 0:00:04.6]} 66. Qxf3+
{[%clk 0:00:05.7]} 66... Kxf3 {[%clk 0:00:05.5]} 67. Kd4 {[%clk 0:00:05.8]}
67... Kf4 {[%clk 0:00:05.9]} 68. Kd3 {[%clk 0:00:02.7]} 68... Ke5 {[%clk
0:00:06.8]} 69. Kc4 {[%clk 0:00:01.6]} 69... Ke4 {[%clk 0:00:07.3]} 70. Kc3
{[%clk 0:00:01.3]} 70... Kd5 {[%clk 0:00:08.2]} 71. Kb4 {[%clk 0:00:01.7]} 71...
Kd4 {[%clk 0:00:09.1]} 0-1

[Event "Late-Titled-Tuesday-Blitz-October-17-2023"]
[Site "Chess.com"]
[Date "2023.10.17"]
[Round "3"]
[White "AlexPapasimakopoulos"]
[Black "Arash_Tahbaz"]
[Result "1-0"]
[WhiteElo "2694"]
[BlackElo "2896"]
[TimeControl "180+1"]
[EndTime "14:29:52 PDT"]
[Termination "AlexPapasimakopoulos won by resignation"]

1. d4 {[%clk 0:03:00.9]} 1... g6 {[%clk 0:03:00.9]} 2. e4 {[%clk 0:03:00]} 2...
Bg7 {[%clk 0:03:01.6]} 3. c4 {[%clk 0:03:00.4]} 3... d6 {[%clk 0:03:01.8]} 4.
Nc3 {[%clk 0:03:00.3]} 4... e5 {[%clk 0:03:02]} 5. Nge2 {[%clk 0:03:00.5]} 5...
exd4 {[%clk 0:03:02.4]} 6. Nxd4 {[%clk 0:03:01.4]} 6... Nc6 {[%clk 0:03:03.2]}
7. Be3 {[%clk 0:03:01.7]} 7... Nge7 {[%clk 0:03:03.4]} 8. h4 {[%clk 0:03:01.8]}
8... O-O {[%clk 0:02:51.5]} 9. h5 {[%clk 0:03:02.1]} 9... f5 {[%clk 0:02:52.2]}
10. hxg6 {[%clk 0:03:01]} 10... hxg6 {[%clk 0:02:52.8]} 11. exf5 {[%clk
0:02:54]} 11... Nxf5 {[%clk 0:02:24.7]} 12. Nxf5 {[%clk 0:02:51.8]} 12... Bxf5
{[%clk 0:02:24.7]} 13. c5 {[%clk 0:02:44.1]} 13... Re8 {[%clk 0:02:06]} 14. Bc4+
{[%clk 0:02:40.2]} 14... Kf8 {[%clk 0:02:05.7]} 15. cxd6 {[%clk 0:02:35]} 15...
Qxd6 {[%clk 0:02:00.8]} 16. Qxd6+ {[%clk 0:02:12.1]} 16... cxd6 {[%clk
0:02:01.7]} 17. O-O-O {[%clk 0:02:11.1]} 17... Ne5 {[%clk 0:02:02.3]} 18. Be2
{[%clk 0:02:08.7]} 18... Nf7 {[%clk 0:01:52.3]} 19. Bd4 {[%clk 0:02:02.1]} 19...
Rac8 {[%clk 0:01:49.3]} 20. Bxg7+ {[%clk 0:01:45.6]} 20... Kxg7 {[%clk
0:01:50.2]} 21. Bd3 {[%clk 0:01:46]} 21... Bxd3 {[%clk 0:01:33.9]} 22. Rxd3
{[%clk 0:01:46.9]} 22... b5 {[%clk 0:01:22.2]} 23. Kb1 {[%clk 0:01:41]} 23... b4
{[%clk 0:01:22.3]} 24. Nb5 {[%clk 0:01:41.1]} 24... Re2 {[%clk 0:01:19.5]} 25.
Nxa7 {[%clk 0:01:23.1]} 25... Rcc2 {[%clk 0:01:17.1]} 26. Rb3 {[%clk 0:01:22.8]}
26... Ne5 {[%clk 0:01:07.1]} 27. f4 {[%clk 0:01:20.7]} 27... Nc4 {[%clk
0:01:03.2]} 28. Rxb4 {[%clk 0:01:21.1]} 28... Rxb2+ {[%clk 0:00:50.1]} 29. Rxb2
{[%clk 0:01:18.7]} 29... Rxb2+ {[%clk 0:00:51]} 30. Ka1 {[%clk 0:01:19.3]} 30...
Rxg2 {[%clk 0:00:36.3]} 31. Nb5 {[%clk 0:01:18.8]} 31... Rf2 {[%clk 0:00:30.5]}
32. Rd1 {[%clk 0:01:16.3]} 32... Rxf4 {[%clk 0:00:28.4]} 33. Nxd6 {[%clk
0:01:15.7]} 33... Ne3 {[%clk 0:00:28.9]} 34. Rd3 {[%clk 0:01:13.2]} 34... Rf3
{[%clk 0:00:24.1]} 35. Kb1 {[%clk 0:01:07.5]} 35... g5 {[%clk 0:00:23.7]} 36.
Rxe3 {[%clk 0:01:03.4]} 36... Rf1+ {[%clk 0:00:18.4]} 37. Kb2 {[%clk 0:01:03.2]}
37... Kg6 {[%clk 0:00:18.2]} 38. a4 {[%clk 0:01:02.8]} 38... g4 {[%clk
0:00:18.2]} 39. a5 {[%clk 0:01:01.8]} 39... Rf6 {[%clk 0:00:10.3]} 40. Rd3
{[%clk 0:01:02]} 40... Rf4 {[%clk 0:00:05.8]} 41. Kb3 {[%clk 0:01:00.4]} 41...
Rf1 {[%clk 0:00:04.6]} 42. Kb4 {[%clk 0:00:31.7]} 42... Ra1 {[%clk 0:00:04.5]}
43. Kb5 {[%clk 0:00:31.8]} 43... Kg5 {[%clk 0:00:03.8]} 44. Ne4+ {[%clk
0:00:30.6]} 44... Kf4 {[%clk 0:00:04.2]} 45. Ng3 {[%clk 0:00:31]} 45... Rb1+
{[%clk 0:00:02]} 46. Kc6 {[%clk 0:00:30.7]} 46... Rc1+ {[%clk 0:00:02.6]} 47.
Kb7 {[%clk 0:00:30.7]} 47... Rb1+ {[%clk 0:00:03.4]} 48. Ka7 {[%clk 0:00:30.9]}
48... Rg1 {[%clk 0:00:02.1]} 49. a6 {[%clk 0:00:28.8]} 49... Ra1 {[%clk
0:00:01.3]} 50. Kb7 {[%clk 0:00:28.6]} 50... Rb1+ {[%clk 0:00:02.2]} 51. Ka8
{[%clk 0:00:28.7]} 51... Ra1 {[%clk 0:00:02.4]} 52. a7 {[%clk 0:00:29.1]} 52...
Rb1 {[%clk 0:00:03]} 53. Ne2+ {[%clk 0:00:27.6]} 53... Kg5 {[%clk 0:00:03.2]}
54. Rd7 {[%clk 0:00:25.2]} 54... Rb2 {[%clk 0:00:02.1]} 55. Ng3 {[%clk
0:00:22.9]} 55... Kf4 {[%clk 0:00:02.5]} 56. Nh5+ {[%clk 0:00:20.3]} 56... Kg5
{[%clk 0:00:02.9]} 57. Rb7 {[%clk 0:00:17]} 57... Re2 {[%clk 0:00:01.7]} 58.
Rb5+ {[%clk 0:00:17.1]} 58... Kh4 {[%clk 0:00:01.9]} 59. Kb7 {[%clk 0:00:16.8]}
59... Re7+ {[%clk 0:00:02.4]} 60. Ka6 {[%clk 0:00:16.5]} 60... Re6+ {[%clk
0:00:02.3]} 61. Rb6 {[%clk 0:00:16.2]} 61... Re1 {[%clk 0:00:01.8]} 62. Rb5
{[%clk 0:00:15.3]} 62... Re6+ {[%clk 0:00:01.2]} 63. Ka5 {[%clk 0:00:14.5]}
63... Re1 {[%clk 0:00:01.6]} 64. Nf4 {[%clk 0:00:14.2]} 64... Ra1+ {[%clk
0:00:01.8]} 65. Kb6 {[%clk 0:00:14.7]} 65... g3 {[%clk 0:00:02.5]} 66. Ra5
{[%clk 0:00:15]} 66... Rb1+ {[%clk 0:00:03]} 67. Ka6 {[%clk 0:00:15.5]} 67... g2
{[%clk 0:00:01.6]} 68. Nxg2+ {[%clk 0:00:15]} 68... Kg3 {[%clk 0:00:02.2]} 69.
a8=Q {[%clk 0:00:15.4]} 69... Rb8 {[%clk 0:00:01.9]} 70. Qxb8+ {[%clk
0:00:15.4]} 1-0

[Event "Late-Titled-Tuesday-Blitz-October-17-2023"]
[Site "Chess.com"]
[Date "2023.10.17"]
[Round "3"]
[White "DvaHrasta"]
[Black "KChor05TTV"]
[Result "1-0"]
[WhiteElo "2499"]
[BlackElo "2653"]
[TimeControl "180+1"]
[EndTime "14:30:00 PDT"]
[Termination "DvaHrasta won by resignation"]

1. c4 {[%clk 0:03:00.9]} 1... Nf6 {[%clk 0:02:59.4]} 2. g3 {[%clk 0:03:01]} 2...
g6 {[%clk 0:02:57.4]} 3. Bg2 {[%clk 0:03:01.2]} 3... Bg7 {[%clk 0:02:57.8]} 4.
Nc3 {[%clk 0:03:01.4]} 4... O-O {[%clk 0:02:58.7]} 5. Nf3 {[%clk 0:03:01.5]}
5... d6 {[%clk 0:02:56]} 6. O-O {[%clk 0:03:01.2]} 6... Nc6 {[%clk 0:02:53.6]}
7. Rb1 {[%clk 0:02:57.6]} 7... a5 {[%clk 0:02:52.1]} 8. a3 {[%clk 0:02:57.3]}
8... e5 {[%clk 0:02:45.7]} 9. b4 {[%clk 0:02:53.2]} 9... axb4 {[%clk 0:02:46.6]}
10. axb4 {[%clk 0:02:53.5]} 10... e4 {[%clk 0:02:39.6]} 11. Ng5 {[%clk
0:02:50.8]} 11... Ne5 {[%clk 0:02:25.7]} 12. Qb3 {[%clk 0:02:40.2]} 12... Bf5
{[%clk 0:02:14.9]} 13. Ngxe4 {[%clk 0:02:32.3]} 13... Nxe4 {[%clk 0:02:13.8]}
14. Nxe4 {[%clk 0:02:31.6]} 14... Qd7 {[%clk 0:02:10.2]} 15. d3 {[%clk
0:02:26.3]} 15... Rfe8 {[%clk 0:01:59.9]} 16. Bb2 {[%clk 0:02:24.2]} 16... Bh3
{[%clk 0:01:57.5]} 17. Ra1 {[%clk 0:02:14.2]} 17... Rxa1 {[%clk 0:01:55.3]} 18.
Rxa1 {[%clk 0:02:13.8]} 18... Qg4 {[%clk 0:01:55.6]} 19. Qc2 {[%clk 0:02:00.2]}
19... Qh5 {[%clk 0:01:50.3]} 20. f3 {[%clk 0:01:50]} 20... f5 {[%clk 0:01:36.9]}
21. Nf2 {[%clk 0:01:47.9]} 21... Bxg2 {[%clk 0:01:37]} 22. Kxg2 {[%clk
0:01:47.1]} 22... Bh6 {[%clk 0:01:34.2]} 23. Bxe5 {[%clk 0:01:41.1]} 23... Rxe5
{[%clk 0:01:25.2]} 24. Ra8+ {[%clk 0:01:37.1]} 24... Kf7 {[%clk 0:01:16.1]} 25.
e4 {[%clk 0:01:36.5]} 25... fxe4 {[%clk 0:01:12.3]} 26. dxe4 {[%clk 0:01:35.2]}
26... Re7 {[%clk 0:01:07]} 27. Qd3 {[%clk 0:01:28.1]} 27... Qe5 {[%clk
0:01:04.4]} 28. Qd5+ {[%clk 0:01:27.2]} 28... Qxd5 {[%clk 0:01:03.9]} 29. cxd5
{[%clk 0:01:25.7]} 29... Bd2 {[%clk 0:01:03.6]} 30. Nd3 {[%clk 0:01:24.9]} 30...
c6 {[%clk 0:01:03.2]} 31. dxc6 {[%clk 0:01:18.5]} 31... bxc6 {[%clk 0:01:04.1]}
32. Rc8 {[%clk 0:01:18]} 32... d5 {[%clk 0:01:01.8]} 33. Rxc6 {[%clk 0:01:14.5]}
33... dxe4 {[%clk 0:01:01.5]} 34. fxe4 {[%clk 0:01:13.6]} 34... Rxe4 {[%clk
0:01:02.4]} 35. Rc7+ {[%clk 0:01:11.1]} 35... Kf6 {[%clk 0:01:01.2]} 36. Rxh7
{[%clk 0:01:07.1]} 36... Bxb4 {[%clk 0:01:00.7]} 37. Rb7 {[%clk 0:00:57.1]}
37... Bd6 {[%clk 0:01:00.5]} 38. Rb6 {[%clk 0:00:50.9]} 38... Rd4 {[%clk
0:01:01]} 39. Nf2 {[%clk 0:00:50.9]} 39... Rd2 {[%clk 0:01:00.4]} 40. Kf3 {[%clk
0:00:48.5]} 40... Ke7 {[%clk 0:00:55.7]} 41. Ne4 {[%clk 0:00:46.6]} 41... Bc7
{[%clk 0:00:48.9]} 42. Rxg6 {[%clk 0:00:39.3]} 42... Rxh2 {[%clk 0:00:48.4]} 43.
Rg7+ {[%clk 0:00:39.5]} 43... Kd8 {[%clk 0:00:48.4]} 44. Nc5 {[%clk 0:00:31.6]}
44... Be5 {[%clk 0:00:47.4]} 45. Ne6+ {[%clk 0:00:29.1]} 45... Ke8 {[%clk
0:00:47.5]} 46. Rg5 {[%clk 0:00:28]} 46... Bf6 {[%clk 0:00:46.8]} 47. Rg6 {[%clk
0:00:24.5]} 47... Kf7 {[%clk 0:00:47.2]} 48. Nf4 {[%clk 0:00:21.7]} 48... Rh1
{[%clk 0:00:47.7]} 49. Rg4 {[%clk 0:00:18.3]} 49... Rf1+ {[%clk 0:00:47.7]} 50.
Ke4 {[%clk 0:00:17.7]} 50... Ra1 {[%clk 0:00:48.6]} 51. Nd5 {[%clk 0:00:15.7]}
51... Ra4+ {[%clk 0:00:48.8]} 52. Kf5 {[%clk 0:00:14.8]} 52... Ra5 {[%clk
0:00:46.3]} 53. Ke4 {[%clk 0:00:14.9]} 53... Bg7 {[%clk 0:00:45.3]} 54. Rf4+
{[%clk 0:00:14.6]} 54... Ke6 {[%clk 0:00:44.7]} 55. Ne3 {[%clk 0:00:13.5]} 55...
Be5 {[%clk 0:00:42.1]} 56. Rg4 {[%clk 0:00:11.4]} 56... Ra4+ {[%clk 0:00:40.9]}
57. Kf3 {[%clk 0:00:11.5]} 57... Ra3 {[%clk 0:00:41.8]} 58. Rg6+ {[%clk
0:00:10.9]} 58... Kf7 {[%clk 0:00:40.6]} 59. Rg4 {[%clk 0:00:09.9]} 59... Kf6
{[%clk 0:00:39.7]} 60. Re4 {[%clk 0:00:09.6]} 60... Bb8 {[%clk 0:00:38.4]} 61.
g4 {[%clk 0:00:09.5]} 61... Ba7 {[%clk 0:00:37.7]} 62. Kf4 {[%clk 0:00:08.5]}
62... Bb8+ {[%clk 0:00:37.4]} 63. Kf3 {[%clk 0:00:08.9]} 63... Kg5 {[%clk
0:00:37.8]} 64. Re8 {[%clk 0:00:06.3]} 64... Ba7 {[%clk 0:00:36.3]} 65. Re5+
{[%clk 0:00:04.9]} 65... Kg6 {[%clk 0:00:34.6]} 66. Re6+ {[%clk 0:00:04.7]}
66... Kg5 {[%clk 0:00:34.3]} 67. Re5+ {[%clk 0:00:05]} 67... Kf6 {[%clk
0:00:35]} 68. Re4 {[%clk 0:00:04.7]} 68... Bc5 {[%clk 0:00:32.3]} 69. Kf4 {[%clk
0:00:03.8]} 69... Bd6+ {[%clk 0:00:31.9]} 70. Kf3 {[%clk 0:00:04.2]} 70... Kg5
{[%clk 0:00:32.8]} 71. Re6 {[%clk 0:00:02.9]} 71... Bc5 {[%clk 0:00:33.1]} 72.
Re5+ {[%clk 0:00:03.2]} 72... Kf6 {[%clk 0:00:33.1]} 73. Rxc5 {[%clk 0:00:03.3]}
73... Rd3 {[%clk 0:00:33.5]} 74. Rf5+ {[%clk 0:00:03.5]} 74... Ke6 {[%clk
0:00:33.4]} 75. Rf4 {[%clk 0:00:03.1]} 75... Rd8 {[%clk 0:00:32.8]} 76. g5
{[%clk 0:00:03.2]} 76... Ke5 {[%clk 0:00:33.4]} 77. Rf5+ {[%clk 0:00:03.1]}
77... Ke6 {[%clk 0:00:34.3]} 78. Kg4 {[%clk 0:00:02.6]} 78... Rd4+ {[%clk
0:00:34.4]} 79. Kh5 {[%clk 0:00:02.7]} 79... Rd3 {[%clk 0:00:35]} 80. Rf3 {[%clk
0:00:02.4]} 80... Rd2 {[%clk 0:00:35.4]} 81. Kg6 {[%clk 0:00:02.6]} 81... Rf2
{[%clk 0:00:35.4]} 82. Rxf2 {[%clk 0:00:02.2]} 82... Ke5 {[%clk 0:00:36.1]} 83.
Kh7 {[%clk 0:00:02.7]} 83... Ke4 {[%clk 0:00:37]} 84. g6 {[%clk 0:00:03.3]}
84... Kxe3 {[%clk 0:00:37.5]} 85. g7 {[%clk 0:00:04.2]} 85... Kxf2 {[%clk
0:00:38.4]} 86. g8=Q {[%clk 0:00:04.5]} 86... Ke2 {[%clk 0:00:39.3]} 87. Qg6
{[%clk 0:00:05.1]} 87... Ke1 {[%clk 0:00:40.2]} 88. Qg5 {[%clk 0:00:05.7]} 88...
Kd1 {[%clk 0:00:41.1]} 89. Qf4 {[%clk 0:00:06]} 89... Kc2 {[%clk 0:00:41.6]} 90.
Qe3 {[%clk 0:00:06.1]} 90... Kb1 {[%clk 0:00:42.5]} 91. Qd2 {[%clk 0:00:06.1]}
91... Ka1 {[%clk 0:00:43]} 92. Kg6 {[%clk 0:00:06.7]} 92... Kb1 {[%clk
0:00:43.9]} 93. Kf5 {[%clk 0:00:07.4]} 93... Ka1 {[%clk 0:00:44.8]} 94. Ke4
{[%clk 0:00:07.9]} 94... Kb1 {[%clk 0:00:45.7]} 95. Kd4 {[%clk 0:00:08.5]} 1-0

[Event "Late-Titled-Tuesday-Blitz-October-17-2023"]
[Site "Chess.com"]
[Date "2023.10.17"]
[Round "3"]
[White "NowInChess"]
[Black "Rumpel-VK"]
[Result "1-0"]
[WhiteElo "2251"]
[BlackElo "2477"]
[TimeControl "180+1"]
[EndTime "14:30:00 PDT"]
[Termination "NowInChess won on time"]

1. e4 {[%clk 0:03:00.9]} 1... c5 {[%clk 0:02:09.9]} 2. d3 {[%clk 0:03:00.5]}
2... Nc6 {[%clk 0:02:08.4]} 3. g3 {[%clk 0:03:00.9]} 3... e6 {[%clk 0:02:08.6]}
4. Bg2 {[%clk 0:03:01.5]} 4... d5 {[%clk 0:02:09.1]} 5. Nd2 {[%clk 0:02:56.1]}
5... Nf6 {[%clk 0:02:09.2]} 6. Ngf3 {[%clk 0:02:56.1]} 6... Be7 {[%clk
0:02:09.5]} 7. O-O {[%clk 0:02:56.4]} 7... O-O {[%clk 0:02:09.6]} 8. e5 {[%clk
0:02:57]} 8... Nd7 {[%clk 0:02:04.3]} 9. Re1 {[%clk 0:02:57.2]} 9... Qc7 {[%clk
0:02:04.6]} 10. Qe2 {[%clk 0:02:57.3]} 10... b5 {[%clk 0:01:32.7]} 11. Nf1
{[%clk 0:02:50.9]} 11... Bb7 {[%clk 0:01:30.8]} 12. Bf4 {[%clk 0:02:49.4]} 12...
Rfe8 {[%clk 0:01:28.3]} 13. h4 {[%clk 0:02:33.7]} 13... d4 {[%clk 0:01:18.6]}
14. N1h2 {[%clk 0:02:19.2]} 14... Nf8 {[%clk 0:01:00]} 15. h5 {[%clk 0:02:13.1]}
15... Nb4 {[%clk 0:00:54.3]} 16. Ng4 {[%clk 0:01:47.7]} 16... Nd5 {[%clk
0:00:53.1]} 17. Bd2 {[%clk 0:01:47.6]} 17... c4 {[%clk 0:00:49.1]} 18. dxc4
{[%clk 0:01:35.4]} 18... Qxc4 {[%clk 0:00:45]} 19. Qxc4 {[%clk 0:01:33.6]} 19...
bxc4 {[%clk 0:00:44.8]} 20. Nxd4 {[%clk 0:01:31.4]} 20... Bc5 {[%clk 0:00:44]}
21. c3 {[%clk 0:01:14.2]} 21... h6 {[%clk 0:00:40.7]} 22. Ne3 {[%clk 0:01:11.9]}
22... Rac8 {[%clk 0:00:33.6]} 23. Nxd5 {[%clk 0:01:04.9]} 23... Bxd5 {[%clk
0:00:33]} 24. f4 {[%clk 0:00:48.8]} 24... Red8 {[%clk 0:00:29]} 25. Be3 {[%clk
0:00:44]} 25... Rb8 {[%clk 0:00:26.5]} 26. Re2 {[%clk 0:00:19.2]} 26... Bxg2
{[%clk 0:00:22.1]} 27. Kxg2 {[%clk 0:00:18.5]} 27... Rd5 {[%clk 0:00:22.7]} 28.
Rb1 {[%clk 0:00:14.3]} 28... Nd7 {[%clk 0:00:21.3]} 29. Nf3 {[%clk 0:00:13.7]}
29... Rd8 {[%clk 0:00:19]} 30. Kf2 {[%clk 0:00:10.2]} 30... Bxe3+ {[%clk
0:00:18.7]} 31. Kxe3 {[%clk 0:00:10.1]} 31... Nc5 {[%clk 0:00:19.1]} 32. Ne1
{[%clk 0:00:08.8]} 32... Nd3 {[%clk 0:00:18.2]} 33. Nxd3 {[%clk 0:00:08.3]}
33... Rxd3+ {[%clk 0:00:18.5]} 34. Kf2 {[%clk 0:00:08.6]} 34... Kf8 {[%clk
0:00:18.9]} 35. Rbe1 {[%clk 0:00:08.4]} 35... Ke7 {[%clk 0:00:19.1]} 36. Re3
{[%clk 0:00:08.7]} 36... Rd2+ {[%clk 0:00:19.5]} 37. R1e2 {[%clk 0:00:09]} 37...
Rd1 {[%clk 0:00:19.7]} 38. Re1 {[%clk 0:00:09]} 38... R1d2+ {[%clk 0:00:20.2]}
39. R1e2 {[%clk 0:00:09.1]} 39... R2d5 {[%clk 0:00:20.5]} 40. g4 {[%clk
0:00:07.2]} 40... a5 {[%clk 0:00:19.9]} 41. Re4 {[%clk 0:00:04.8]} 41... Rc8
{[%clk 0:00:20]} 42. Rd4 {[%clk 0:00:04.3]} 42... Rxd4 {[%clk 0:00:19.5]} 43.
cxd4 {[%clk 0:00:05.2]} 43... Kd7 {[%clk 0:00:19.9]} 44. Ke3 {[%clk 0:00:05.2]}
44... Kc6 {[%clk 0:00:19.4]} 45. Rc2 {[%clk 0:00:04.6]} 45... Kd5 {[%clk
0:00:19.6]} 46. b3 {[%clk 0:00:03.9]} 46... c3 {[%clk 0:00:09.8]} 47. Kd3 {[%clk
0:00:03.6]} 47... Rc7 {[%clk 0:00:09.1]} 48. Rxc3 {[%clk 0:00:03.8]} 48... Rxc3+
{[%clk 0:00:09.5]} 49. Kxc3 {[%clk 0:00:04.7]} 49... Ke4 {[%clk 0:00:09.9]} 50.
Kc4 {[%clk 0:00:04.8]} 50... Kxf4 {[%clk 0:00:09.9]} 51. a3 {[%clk 0:00:02.1]}
51... g5 {[%clk 0:00:07.6]} 52. b4 {[%clk 0:00:02.6]} 52... axb4 {[%clk
0:00:07.6]} 53. axb4 {[%clk 0:00:02.6]} 53... Kxg4 {[%clk 0:00:08.5]} 54. b5
{[%clk 0:00:03.5]} 54... Kh3 {[%clk 0:00:07]} 55. b6 {[%clk 0:00:04.4]} 55... g4
{[%clk 0:00:07.8]} 56. b7 {[%clk 0:00:05.3]} 56... g3 {[%clk 0:00:08.4]} 57.
b8=Q {[%clk 0:00:06.2]} 57... g2 {[%clk 0:00:09.3]} 58. Qg8 {[%clk 0:00:03.8]}
58... Kh2 {[%clk 0:00:09.1]} 59. d5 {[%clk 0:00:02.7]} 59... exd5+ {[%clk
0:00:08.1]} 60. Kxd5 {[%clk 0:00:03.6]} 60... g1=Q {[%clk 0:00:08]} 61. Qxg1+
{[%clk 0:00:04.4]} 61... Kxg1 {[%clk 0:00:08.5]} 62. Kd6 {[%clk 0:00:05.1]}
62... Kf2 {[%clk 0:00:08.3]} 63. Ke7 {[%clk 0:00:05.8]} 63... Kf3 {[%clk
0:00:08.6]} 64. Kxf7 {[%clk 0:00:06.2]} 64... Kf4 {[%clk 0:00:08.9]} 65. e6
{[%clk 0:00:05.5]} 65... Kg5 {[%clk 0:00:09]} 66. Kg7 {[%clk 0:00:05.4]} 66...
Kxh5 {[%clk 0:00:08.3]} 67. e7 {[%clk 0:00:06.3]} 67... Kg5 {[%clk 0:00:08.6]}
68. e8=Q {[%clk 0:00:07.2]} 1-0